[Event "XII Cracow ICC-A 2024"]
[Site "Krakow"]
[Date "2024.06.23"]
[Round "2.5"]
[White "Licznerski, Lukasz"]
[Black "Aakash Sharadchandra, Dalvi"]
[Result "1-0"]
[ECO "B90"]
[WhiteElo "2434"]
[BlackElo "2291"]
[Annotator "TA"]
[PlyCount "73"]
[EventDate "2024.06.20"]
[EventType "swiss"]
[EventCountry "POL"]
[SourceTitle "playchess.com"]
[Source "ChessBase"]
[SourceQuality "1"]
[TimeControl "40/5400+30:1800+30"]

{[%evp 17,73,26,20,16,31,27,26,0,5,5,0,0,0,0,5,0,0,0,0,-6,0,0,0,0,0,-19,-16,-160,-143,-123,-144,-125,-16,-9,-8,-11,-9,0,-9,-11,-6,-7,112,119,112,102,138,133,138,117,161,137,445,417,785,762,645,243]} 1. e4 {[%emt 0:17:21]} c5 {[%emt 0:00:07]} 2. Nf3 {[%emt 0:00:11]} d6 {[%emt 0:00:06]} 3. d4 {[%emt 0:00:05]} cxd4 {[%emt 0:00:06]} 4. Nxd4 {[%emt 0:00:05]} Nf6 {[%emt 0:00:06]} 5. Nc3 {[%emt 0:00:05]} a6 {[%emt 0:00:05]} 6. Be3 {[%emt 0:04:16]} e5 {[%emt 0:00:06]} 7. Nb3 {[%emt 0:00:03]} Be6 {[%emt 0:00:14]} 8. f3 {[%emt 0:00:10]} h5 {[%emt 0:00:06]} 9. Qd2 {[%emt 0:00:21]} Nbd7 {[%emt 0:00:19]} 10. Nd5 {[%emt 0:05:04]} Bxd5 {[%emt 0:00:14]} 11. exd5 {[%emt 0:00:02]} g6 {[%emt 0:00:09]} 12. O-O-O {[%emt 0:04:06] White has an edge.} Nb6 {[%emt 0:00:11]} 13. Qa5 {[%emt 0:03:52]} Bh6 {[%emt 0:00:24]} 14. Bxh6 {[%emt 0:00:02]} Rxh6 {[%emt 0:00:07]} 15. Qd2 {[%emt 0:00:30]} Rh8 {[%emt 0:01:01]} 16. f4 {[%emt 0:00:00]} exf4 {[%emt 0:01:21]} (16... Nbxd5 17. fxe5 dxe5 18. Bc4 $16) 17. Qxf4 {[%emt 0:05:49]} Kf8 {[%emt 0:00:14][%cal Of8g7]} 18. c4 Rc8 {[%emt 0:05:44][%cal Of8g7]} 19. Kb1 {[%emt 0:06:18]} Kg7 {[%emt 0:03:22]} 20. Bd3 {[%emt 0:00:55]} Re8 {[%emt 0:17:37][%cal Ob6c4]} 21. Nd4 {[%emt 0:07:51]} Ng4 $1 {[%emt 0:06:10]} (21... Nxc4 $6 22. Bxc4 Rxc4 23. Nf5+ gxf5 24. Qxc4 $14) 22. Bxg6 {[%emt 0:21:04]} fxg6 $17 {[%emt 0:02:00]} 23. Ne6+ {[%emt 0:00:11] [#]} Rxe6 $1 {[%emt 0:00:05]} 24. dxe6 {[%emt 0:00:03]} Ne5 {[%emt 0:03:40]} (24... Rxc4 $2 25. Qf7+ (25. Qxd6 Qxd6 26. Rxd6 Nc8 $14) 25... Kh6 26. e7 $18 (26. Qxb7 Rc7 $15) (26. Qxb7 Rc7 $17)) (24... Qf6 25. Rhf1 Nxc4 26. Qd4 Qxd4 27. Rf7+ Kh6 28. Rxd4 $15) ({Black should try} 24... Nxc4 $17 {...Qb6 is the strong threat.} 25. Qf7+ Kh6 26. Qf4+ Qg5 27. Qxg5+ Kxg5) 25. b3 $132 {[%emt 0:01:44][%mdl 2048] Threatens to win with Qd4. White has counterplay. Dancing on a razor blade.} Qe7 {[%emt 0:03:13]} 26. Qd4 {[%emt 0:02:55][%csl LRb6,LRd6] Rhf1 would now be deadly.} Rc6 {[%emt 0:00:59]} 27. c5 $1 {[%emt 0:00:40]} Rxc5 {[%emt 0:01:17] And now ...Nd5 would win.} 28. Qxd6 {[%emt 0:00:04]} Qxd6 {[%emt 0:00:11]} 29. Rxd6 {[%emt 0:00:03]} Rc6 {[%emt 0:03:33] [#]} (29... Nd5 $11 {remains equal.}) 30. Rxc6 $1 $16 {[%emt 0:00:56]} (30. Rhd1 Kf6 31. Rd7 (31. e7+ Kxe7 32. R6d2 Re6 $17) 31... Kxe6 (31... Rxe6 32. Rxb7 Ng4 33. Rd8 $11) (31... Nbxd7 32. exd7 Nxd7 33. Rxd7 $15) 32. Rxb7 Nd5 $17) 30... Nxc6 {[%emt 0:00:57]} 31. Rf1 {[%emt 0:00:28]} Nd5 {[%emt 0:03:28]} 32. Rf7+ {[%emt 0:00:16][%mdl 1024] White has strong compensation.} Kh6 {[%emt 0:00:10]} 33. Rxb7 {[%emt 0:00:32][%cal Ob3b4] White is more active.} Kg5 {[%emt 0:00:19] [#]} 34. Rf7 $1 {[%emt 0:02:52][%cal Ob3b4] Hoping for b4!} Nde7 $2 {[%emt 0:07:18][%mdl 8192]} (34... a5 $16 35. Kc1 h4) 35. b4 $18 {[%emt 0:01:35]} Nf5 {[%emt 0:01:21]} (35... Nd5 $142 36. Kb2 Ncxb4) 36. a4 {[%emt 0:01:05]} Nd6 {[%emt 0:00:58]} 37. Rd7 $2 {[%emt 0:00:31] Quite a comeback for White.   Weighted Error Value: White=0.12 (very precise) /Black=0.34.  Loses game:     	---       	Black=1      Mistake:       	White=1     	Black=3      Inaccurate:     	---       	Black=2      OK:         	White=9     	Black=11     Best:        	White=4     	Black=2      Strong:       	White=3     	Black=1      Brilliant:      	---       	Black=1} (37. h4+ Kxh4 38. Rd7) 1-0

[Event "XII Cracow ICC-A 2024"]
[Site "Krakow"]
[Date "2024.06.23"]
[Round "2.6"]
[White "Bogdanov, Egor"]
[Black "Damen, Jip"]
[Result "1/2-1/2"]
[ECO "C11"]
[WhiteElo "2433"]
[BlackElo "2259"]
[Annotator "TA"]
[PlyCount "61"]
[EventDate "2024.06.20"]
[EventType "swiss"]
[EventCountry "POL"]
[SourceTitle "playchess.com"]
[Source "ChessBase"]
[SourceQuality "1"]
[TimeControl "40/5400+30:1800+30"]

{[%evp 9,61,-28,0,4,13,0,10,0,18,-11,-3,-9,-17,-24,-7,-15,14,0,3,-40,-39,-45,-33,-41,-14,-18,-25,-37,-37,-64,-66,-76,-22,-21,-20,-20,-17,-17,-18,-19,-4,-8,-8,-15,-16,-24,-21,-22,-17,-31,-32,-37,-42,-45]} 1. e4 {[%emt 0:00:08]} e6 {[%emt 0:00:18]} 2. d4 {[%emt 0:00:59]} d5 {[%emt 0:00:07]} 3. Nc3 {[%emt 0:03:45]} Nf6 {[%emt 0:00:21]} 4. Bd3 {[%emt 0:10:51]} c5 {[%emt 0:04:29]} 5. exd5 {[%emt 0:08:24]} exd5 {[%emt 0:08:21]} 6. Bb5+ {[%emt 0:01:15]} Nc6 {[%emt 0:01:07]} 7. Nf3 {[%emt 0:00:12]} Bg4 {[%emt 0:07:44]} 8. Be3 {[%emt 0:10:43] The position is equal.} cxd4 {[%emt 0:16:09]} 9. Bxd4 {[%emt 0:03:07]} Be7 {[%emt 0:02:13]} 10. O-O {[%emt 0:02:22]} O-O {[%emt 0:00:37]} 11. Be2 {[%emt 0:11:39]} Ne4 {[%emt 0:04:39]} 12. Ne5 {[%emt 0:05:37]} Bf5 {[%emt 0:11:03]} 13. Nxe4 {[%emt 0:04:10] [#] Nxc6 would now be deadly.} Nxd4 {[%emt 0:01:58]} 14. Qxd4 {[%emt 0:00:14]} dxe4 {[%emt 0:00:17]} 15. Qxd8 {[%emt 0:04:11]} Raxd8 {[%emt 0:00:42]} 16. Rad1 {[%emt 0:00:47] Prevents Rd2} Bf6 {[%emt 0:07:40][%cal Be7f6,Bf6d4,Bd4c5][%mdl 32]} 17. Nc4 {[%emt 0:04:46]} Be6 {[%emt 0:01:43]} 18. b3 {[%emt 0:00:40]} Bd4 {[%emt 0:03:24]} 19. Ne3 {[%emt 0:04:07]} f5 {[%emt 0:02:04] White is weak on the dark squares} 20. c4 {[%emt 0:02:59]} f4 {[%emt 0:03:10]} (20... g5 $17) 21. Nd5 $1 $11 {[%emt 0:00:12]} Bc5 {[%emt 0:00:44]} 22. b4 {[%emt 0:04:19]} Bxd5 {[%emt 0:01:59]} 23. cxd5 {[%emt 0:00:28]} Bxb4 {[%emt 0:01:01]} 24. Rd4 {[%emt 0:00:10][%csl LRb4,LRe4]} Bc5 {[%emt 0:03:13]} 25. Rxe4 {[%emt 0:00:10]} Rfe8 {[%emt 0:00:22]} 26. Rxe8+ {[%emt 0:03:08]} Rxe8 {[%emt 0:00:06]} 27. Bg4 {[%emt 0:00:14]} Kf8 {[%emt 0:02:28]} 28. Rc1 {[%emt 0:00:38]} b6 {[%emt 0:00:14]} 29. Kf1 {[%emt 0:00:56]} Re4 {[%emt 0:00:21]} 30. Rd1 {[%emt 0:02:52]} Ke7 {[%emt 0:00:51]} 31. Re1 {[%emt 0:04:19] Weighted Error Value: White=0.11 (very precise) /Black=0.11 (very precise) .  Mistake:       	---       	Black=1      Inaccurate:     	White=3     	Black=2      OK:         	White=7     	Black=12     Best:        	White=1     	---        Strong:       	White=1     	---} 1/2-1/2

[Event "XII Cracow ICC-A 2024"]
[Site "Krakow"]
[Date "2024.06.23"]
[Round "2.7"]
[White "Janeczko, Jakub"]
[Black "Sieciechowicz, Marcin"]
[Result "1/2-1/2"]
[ECO "C24"]
[WhiteElo "2293"]
[BlackElo "2405"]
[Annotator "ChessBase"]
[PlyCount "61"]
[EventDate "2024.06.20"]
[EventType "swiss"]
[EventCountry "POL"]
[SourceTitle "playchess.com"]
[Source "ChessBase"]
[SourceQuality "1"]
[TimeControl "40/5400+30:1800+30"]

1. e4 {[%emt 0:00:04]} e5 {[%emt 0:00:20]} 2. Nc3 {[%emt 0:00:17]} Nf6 {[%emt 0:00:36]} 3. Bc4 {[%emt 0:00:05]} Nc6 {[%emt 0:00:31]} 4. d3 {[%emt 0:00:09]} Na5 {[%emt 0:01:02]} 5. Qf3 {[%emt 0:00:21]} c6 {[%emt 0:03:36]} 6. Nge2 {[%emt 0:01:38]} b5 {[%emt 0:00:41]} 7. Bb3 {[%emt 0:00:18]} d6 {[%emt 0:00:22]} 8. h3 {[%emt 0:07:43]} Be7 {[%emt 0:00:59]} 9. O-O {[%emt 0:02:43]} O-O {[%emt 0:00:39]} 10. d4 {[%emt 0:00:53]} Qc7 {[%emt 0:11:04]} 11. dxe5 {[%emt 0:08:01]} dxe5 {[%emt 0:00:44]} 12. Ng3 {[%emt 0:03:08]} Rd8 {[%emt 0:12:13]} 13. Be3 {[%emt 0:05:30]} Nxb3 {[%emt 0:04:13]} 14. axb3 {[%emt 0:00:07]} g6 {[%emt 0:02:51]} 15. Nge2 {[%emt 0:10:09]} Be6 {[%emt 0:04:37]} 16. Nc1 {[%emt 0:01:26]} Kg7 {[%emt 0:12:32]} 17. Nd3 {[%emt 0:01:18]} Nd7 {[%emt 0:04:36]} 18. Qg3 {[%emt 0:02:42]} b4 {[%emt 0:02:32]} 19. Ne2 {[%emt 0:03:24]} c5 {[%emt 0:04:14]} 20. f4 {[%emt 0:05:22]} c4 {[%emt 0:08:22]} 21. bxc4 {[%emt 0:10:27]} Bxc4 {[%emt 0:05:36]} 22. fxe5 {[%emt 0:01:07]} Kg8 {[%emt 0:01:44]} 23. e6 {[%emt 0:07:40]} Qxg3 {[%emt 0:00:33]} 24. exf7+ {[%emt 0:00:02]} Bxf7 {[%emt 0:00:11]} 25. Nxg3 {[%emt 0:00:02]} a5 {[%emt 0:03:40]} 26. b3 {[%emt 0:00:02]} Rdc8 {[%emt 0:00:37]} 27. Rf2 {[%emt 0:01:16]} Bh4 {[%emt 0:03:03]} 28. Kh2 {[%emt 0:11:00]} Nf6 {[%emt 0:00:44]} 29. Re2 {[%emt 0:02:23]} Bxg3+ {[%emt 0:01:16]} 30. Kxg3 {[%emt 0:00:04]} Nxe4+ {[%emt 0:00:05]} 31. Kh2 {[%emt 0:00:24]} 1/2-1/2

[Event "XII Cracow ICC-A 2024"]
[Site "Krakow"]
[Date "2024.06.23"]
[Round "2.8"]
[White "Apoorv Kamble"]
[Black "Jake Shanty"]
[Result "1/2-1/2"]
[ECO "C07"]
[WhiteElo "2369"]
[BlackElo "2217"]
[Annotator "ChessBase"]
[PlyCount "85"]
[EventDate "2024.06.20"]
[EventType "swiss"]
[EventCountry "POL"]
[SourceTitle "playchess.com"]
[Source "ChessBase"]
[SourceQuality "1"]
[TimeControl "40/5400+30:1800+30"]

1. e4 {[%emt 0:00:02]} e6 {[%emt 0:00:20]} 2. d4 {[%emt 0:00:11]} d5 {[%emt 0:00:22]} 3. Nd2 {[%emt 0:00:47]} c5 {[%emt 0:01:24]} 4. exd5 {[%emt 0:01:00]} Qxd5 {[%emt 0:00:58]} 5. dxc5 {[%emt 0:00:58]} Qxc5 {[%emt 0:01:00]} 6. Ngf3 {[%emt 0:00:37]} Nf6 {[%emt 0:02:32]} 7. g3 {[%emt 0:09:17]} Qc7 {[%emt 0:14:06]} 8. Bg2 {[%emt 0:00:21]} b6 {[%emt 0:07:33]} 9. O-O {[%emt 0:02:17]} Bb7 {[%emt 0:01:55]} 10. c4 {[%emt 0:03:22]} Be7 {[%emt 0:04:26]} 11. b3 {[%emt 0:00:36]} O-O {[%emt 0:00:22]} 12. Bb2 {[%emt 0:00:02]} Nbd7 {[%emt 0:02:48]} 13. Qe2 {[%emt 0:01:07]} Rad8 {[%emt 0:05:01]} 14. Rad1 {[%emt 0:01:51]} Nc5 {[%emt 0:02:22]} 15. Nd4 {[%emt 0:05:57]} Bxg2 {[%emt 0:06:33]} 16. Kxg2 {[%emt 0:00:05]} a6 {[%emt 0:04:23]} 17. f4 {[%emt 0:01:14]} Rfe8 {[%emt 0:08:02]} 18. Rfe1 {[%emt 0:04:02]} Bf8 {[%emt 0:05:27]} 19. N2f3 {[%emt 0:08:20]} Qb7 {[%emt 0:01:05]} 20. Kg1 {[%emt 0:01:29]} Nce4 {[%emt 0:08:40]} 21. a3 {[%emt 0:02:54]} Nd6 {[%emt 0:02:43]} 22. Qg2 {[%emt 0:08:01]} Rc8 {[%emt 0:01:52]} 23. Rc1 {[%emt 0:00:55]} Red8 {[%emt 0:02:17]} 24. Red1 {[%emt 0:15:45]} Ng4 {[%emt 0:05:14]} 25. Qe2 {[%emt 0:04:03]} Nf5 {[%emt 0:01:31]} 26. b4 {[%emt 0:12:50]} a5 {[%emt 0:03:59]} 27. Nxf5 {[%emt 0:01:44]} exf5 {[%emt 0:00:17]} 28. Rxd8 {[%emt 0:00:23]} Rxd8 {[%emt 0:00:29]} 29. h3 {[%emt 0:00:19]} Nf6 {[%emt 0:03:56]} 30. Bxf6 {[%emt 0:07:34]} gxf6 {[%emt 0:00:07]} 31. Nh4 {[%emt 0:00:08]} axb4 {[%emt 0:01:56]} 32. axb4 {[%emt 0:00:17]} Qe4 {[%emt 0:01:29]} 33. Re1 {[%emt 0:03:25]} Re8 {[%emt 0:01:11]} 34. Qxe4 {[%emt 0:00:08]} fxe4 {[%emt 0:00:06]} 35. b5 {[%emt 0:00:13]} e3 {[%emt 0:00:45]} 36. Nf5 {[%emt 0:05:22]} Re4 {[%emt 0:00:41]} 37. Kg2 {[%emt 0:00:37]} Bc5 {[%emt 0:00:23]} 38. Kf3 {[%emt 0:00:39]} Rxc4 {[%emt 0:00:09]} 39. Rd1 {[%emt 0:00:27]} h5 {[%emt 0:00:55]} 40. Nd6 {[%emt 0:00:36]} Rb4 {[%emt 0:00:35]} 41. Ne8 {[%emt 0:30:29]} Rxb5 {[%emt 0:30:29]} 42. Nxf6+ {[%emt 0:00:02]} Kf8 {[%emt 0:00:26]} 43. Ke4 1/2-1/2

[Event "XII Cracow ICC-A 2024"]
[Site "Krakow"]
[Date "2024.06.23"]
[Round "2.9"]
[White "Suder, Jakub"]
[Black "Meessen, Rudolf"]
[Result "1-0"]
[ECO "D35"]
[WhiteElo "2328"]
[BlackElo "2182"]
[Annotator "RC"]
[PlyCount "109"]
[EventDate "2024.06.20"]
[EventType "swiss"]
[EventCountry "POL"]
[SourceTitle "playchess.com"]
[Source "ChessBase"]
[SourceQuality "1"]
[TimeControl "40/5400+30:1800+30"]

1. d4 {[%emt 0:00:26]} d5 {[%emt 0:00:52]} 2. c4 {[%emt 0:00:06]} e6 {[%emt 0:00:05]} 3. Nc3 {[%emt 0:00:04]} Nf6 {[%emt 0:00:25]} 4. cxd5 {[%emt 0:00:05]} exd5 {[%emt 0:00:05]} 5. Bg5 {[%emt 0:00:06]} Bb4 {[%emt 0:00:51]} 6. Qc2 {[%emt 0:02:12]} h6 {[%emt 0:00:45]} 7. Bxf6 {[%emt 0:00:06]} Qxf6 {[%emt 0:00:07]} 8. a3 {[%emt 0:00:07]} Bxc3+ {[%emt 0:07:23]} 9. Qxc3 {[%emt 0:00:07]} c6 {[%emt 0:00:57]} 10. e3 {[%emt 0:00:17]} O-O {[%emt 0:01:02]} 11. Ne2 {[%emt 0:00:20]} Bf5 {[%emt 0:02:52]} 12. Ng3 {[%emt 0:00:16]} Bh7 {[%emt 0:00:31]} 13. Be2 {[%emt 0:00:21]} a5 {[%emt 0:01:00]} 14. O-O {[%emt 0:02:13]} Nd7 {[%emt 0:00:08]} 15. b4 {[%emt 0:08:32]} a4 {[%emt 0:04:47]} 16. f3 {[%emt 0:07:52]} b6 {[%emt 0:09:35]} 17. Rac1 {[%emt 0:02:24]} Rfe8 {[%emt 0:08:53]} 18. e4 {[%emt 0:03:42]} Re6 {[%emt 0:17:58]} 19. e5 {[%emt 0:06:02]} Qe7 {[%emt 0:03:23]} 20. f4 {[%emt 0:01:04]} f5 {[%emt 0:00:16]} 21. b5 {[%emt 0:05:20]} Nb8 {[%emt 0:00:57]} 22. Bf3 {[%emt 0:08:17]} Ra5 {[%emt 0:00:12]} 23. Rb1 {[%emt 0:02:59]} Qd7 {[%emt 0:05:33]} 24. Rfc1 {[%emt 0:02:29]} Bg6 {[%emt 0:01:01]} 25. Qc2 {[%emt 0:04:38]} Kh7 {[%emt 0:02:23]} 26. h4 {[%emt 0:02:01]} h5 {[%emt 0:01:22]} 27. Nxh5 {[%emt 0:06:47]} Qe7 {[%emt 0:04:36]} 28. Ng3 {[%emt 0:01:34]} Qxh4 {[%emt 0:00:13]} 29. Ne2 {[%emt 0:01:01]} Qe7 {[%emt 0:02:59]} 30. Qd3 {[%emt 0:02:15]} Qd7 {[%emt 0:04:43]} 31. Kf2 {[%emt 0:01:27]} Kg8 {[%emt 0:03:04]} 32. Rb2 {[%emt 0:01:41]} Qd8 {[%emt 0:03:38]} 33. Nc3 {[%emt 0:02:56]} Qf8 {[%emt 0:06:34]} 34. Nxd5 {[%emt 0:03:23]} cxd5 {[%emt 0:00:29]} 35. Bxd5 {[%emt 0:00:08]} Bf7 {[%emt 0:07:34]} 36. Bxe6 {[%emt 0:00:15]} Bxe6 {[%emt 0:00:08]} 37. d5 {[%emt 0:00:34]} Qd8 {[%emt 0:00:17]} 38. Rd1 {[%emt 0:01:26]} Qh4+ {[%emt 0:00:17]} 39. Qg3 {[%emt 0:02:43]} Qh5 {[%emt 0:00:02]} 40. Rbb1 {[%emt 0:01:43]} Bd7 {[%emt 0:00:15]} 41. Rh1 {[%emt 0:32:36]} Qg4 {[%emt 0:03:10]} 42. Qxg4 {[%emt 0:00:00]} fxg4 {[%emt 0:00:05]} 43. e6 {[%emt 0:00:00]} Bxb5 {[%emt 0:00:18]} 44. Rxb5 {[%emt 0:00:00]} Rxb5 {[%emt 0:00:15]} 45. Rh8+ {[%emt 0:00:00]} Kxh8 {[%emt 0:00:33]} 46. e7 {[%emt 0:00:00]} Rb2+ {[%emt 0:03:08]} 47. Ke3 {[%emt 0:00:00]} Rb3+ {[%emt 0:03:40]} 48. Kd4 {[%emt 0:00:00]} Na6 {[%emt 0:00:05]} 49. e8=Q+ {[%emt 0:00:00]} Kh7 {[%emt 0:00:05]} 50. Qxa4 {[%emt 0:00:00]} Nc5 {[%emt 0:00:05]} 51. Qc6 {[%emt 0:00:00]} g3 {[%emt 0:01:23]} 52. f5 {[%emt 0:00:00]} Rxa3 {[%emt 0:02:09]} 53. Qxb6 {[%emt 0:00:00]} Nd7 {[%emt 0:03:17]} 54. Qg6+ {[%emt 0:00:00]} Kg8 {[%emt 0:00:13]} 55. Qe6+ {[%emt 0:00:00]} 1-0

[Event "XII Cracow ICC-A 2024"]
[Site "Krakow"]
[Date "2024.06.23"]
[Round "2.10"]
[White "Kracht, Raphael"]
[Black "Nurgaliyev, Sauat"]
[Result "0-1"]
[ECO "B22"]
[WhiteElo "2199"]
[BlackElo "2321"]
[Annotator "ChessBase"]
[PlyCount "63"]
[EventDate "2024.06.20"]
[EventType "swiss"]
[EventCountry "POL"]
[SourceTitle "playchess.com"]
[Source "ChessBase"]
[SourceQuality "1"]
[TimeControl "40/5400+30:1800+30"]

1. e4 {[%emt 0:00:22]} c5 {[%emt 0:00:54]} 2. c3 {[%emt 0:00:06]} Nf6 {[%emt 0:00:17]} 3. e5 {[%emt 0:00:06]} Nd5 {[%emt 0:00:12]} 4. Bc4 {[%emt 0:00:07]} e6 {[%emt 0:01:18]} 5. Nf3 {[%emt 0:00:36]} d6 {[%emt 0:00:10]} 6. d4 {[%emt 0:00:04]} cxd4 {[%emt 0:00:04]} 7. cxd4 {[%emt 0:00:04]} Be7 {[%emt 0:00:14]} 8. O-O {[%emt 0:00:10]} O-O {[%emt 0:00:16]} 9. Qe2 {[%emt 0:00:06]} b6 {[%emt 0:00:05]} 10. Rd1 {[%emt 0:00:13]} Bb7 {[%emt 0:00:22]} 11. Bxd5 {[%emt 0:00:13]} exd5 {[%emt 0:00:12]} 12. Nc3 {[%emt 0:00:08]} Na6 {[%emt 0:00:17]} 13. Nb5 {[%emt 0:04:19]} dxe5 {[%emt 0:00:30]} 14. dxe5 {[%emt 0:03:57]} Nc5 {[%emt 0:00:11]} 15. Nc3 {[%emt 0:17:12]} Qd7 {[%emt 0:03:05]} 16. Nd4 {[%emt 0:00:47]} Rae8 {[%emt 0:01:03]} 17. Qh5 {[%emt 0:34:18]} Bd8 {[%emt 0:04:32]} 18. Bf4 {[%emt 0:02:50]} f6 {[%emt 0:08:16]} 19. exf6 {[%emt 0:19:14]} Bxf6 {[%emt 0:01:51]} 20. Bg5 {[%emt 0:01:54]} Bxd4 {[%emt 0:11:37]} 21. Rxd4 {[%emt 0:00:09]} Rf5 {[%emt 0:01:00]} 22. Qh4 {[%emt 0:06:21]} Ne6 {[%emt 0:02:08]} 23. Be3 {[%emt 0:02:19]} Nxd4 {[%emt 0:00:30]} 24. Qxd4 {[%emt 0:00:07]} Re6 {[%emt 0:02:29]} 25. Rd1 {[%emt 0:00:30]} Qe8 {[%emt 0:03:59]} 26. h3 {[%emt 0:01:46]} h6 {[%emt 0:01:49]} 27. Rd2 {[%emt 0:03:25]} Qg6 {[%emt 0:04:12]} 28. Rd1 {[%emt 0:01:39]} Kh7 {[%emt 0:03:06]} 29. Kh2 {[%emt 0:00:23]} Rc6 {[%emt 0:01:05]} 30. g4 {[%emt 0:01:23]} Rf7 {[%emt 0:01:35]} 31. Qd3 {[%emt 0:00:35]} Rd7 {[%emt 0:00:48]} 32. Qxg6+ {[%emt 0:00:26]} 0-1

[Event "XII Cracow ICC-A 2024"]
[Site "Krakow"]
[Date "2024.06.23"]
[Round "2.11"]
[White "Moussard, Jules"]
[Black "Kawulok, Marek"]
[Result "1-0"]
[ECO "C77"]
[WhiteElo "2610"]
[BlackElo "2175"]
[Annotator "TA"]
[PlyCount "47"]
[EventDate "2024.06.20"]
[EventType "swiss"]
[EventCountry "POL"]
[SourceTitle "playchess.com"]
[Source "ChessBase"]
[SourceQuality "1"]
[TimeControl "40/5400+30:1800+30"]

{[%evp 26,47,26,20,54,17,16,5,17,19,20,0,530,553,401,410,29995,29996,29996,29997,29997,29998,29998,29999]} 1. e4 e5 2. Nf3 Nc6 3. Bb5 a6 4. Ba4 Nf6 5. d3 b5 6. Bb3 Be7 7. O-O d6 8. c3 {[%emt 0:10:57]} O-O {[%emt 0:06:09]} 9. h3 {[%emt 0:00:18]} Na5 {[%emt 0:04:34]} 10. Bc2 {[%emt 0:00:06]} c5 {[%emt 0:00:06]} 11. Re1 {[%emt 0:01:09]} Qc7 {[%emt 0:04:56]} 12. Nbd2 {[%emt 0:01:12][%cal Bb1d2,Bd2f1,Bf1g3][%mdl 32]} Nc6 {[%emt 0:03:03]} 13. a4 {[%emt 0:07:57]} Bb7 {[%emt 0:07:58]} 14. Nf1 {[%emt 0:04:19]} d5 {[%emt 0:12:38]} 15. Ng3 {[%emt 0:00:56]} (15. Ne3 {simplifies} Rad8 16. axb5 axb5 17. Nxd5 Nxd5 18. exd5 Rxd5 19. Qe2) 15... g6 {[%emt 0:10:33][%cal Bg7g6,Bg6h5][%mdl 32]} 16. Qd2 {[%emt 0:11:42]} (16. Bh6 {simplifies} Rfd8 17. Qc1 dxe4 18. dxe4 Kh8 19. axb5 axb5 20. Rxa8 Rxa8 21. Nf1) 16... Rfe8 {[%emt 0:15:56] The position is equal.} (16... dxe4 {simplifies} 17. dxe4 Rfe8 18. Qe2 c4) 17. Qh6 {[%emt 0:01:33]} dxe4 {[%emt 0:00:40]} (17... Na5 {simplifies} 18. Bg5 Bf8 19. Qh4 Nd7) 18. Ng5 {[%emt 0:09:52]} (18. Nxe4 {simplifies} Nxe4 19. dxe4 Bf8 20. Qh4) 18... exd3 {[%emt 0:10:13][%mdl 8192] [#]} (18... Na5 $11 {and Black stays safe.}) 19. Nh5 $1 $18 {[%emt 0:04:44][%mdl 512]} gxh5 {[%emt 0:03:03]} 20. Bxd3 {[%emt 0:00:38]} Nd8 {[%emt 0:11:36]} (20... e4 $18) 21. Bxh7+ {[%emt 0:00:29] White mates.} Kh8 {[%emt 0:00:05]} 22. Bg6+ {[%emt 0:00:05]} Kg8 {[%emt 0:00:07] [#]} 23. Bxf7+ $1 {[%emt 0:00:08][%mdl 512]} Nxf7 {[%emt 0:00:11]} 24. Qg6+ {[%emt 0:00:03] Weighted Error Value: White=0.08 (flawless) /Black=1.61.  Loses game:     	---       	Black=1      Mistake:       	---       	Black=1      Inaccurate:     	White=1     	---        OK:         	White=3     	Black=2      Best:        	---       	Black=1      Brilliant:      	White=1     	---} 1-0